bitfinex/quotes_BTCUSD_20241002
["timestamp","ask_amount","ask_price","bid_price","bid_amount"]
[1727899702633,0.330926,60437.0,60432.0,0.165472]
[1727899702889,0.01718937,60436.0,60426.0,0.330982]
[1727899703129,0.01718937,60436.0,60429.0,0.165483]
[1727899703130,0.165472,60433.0,60429.0,0.165483]
[1727899703364,0.165472,60433.0,60424.0,0.330993]
[1727899703365,0.0171853,60432.0,60424.0,0.330993]
[1727899703584,0.330933,60436.0,60429.0,0.165482]
[1727899703805,0.04312643,60435.0,60432.0,0.014]
[1727899704053,0.165473,60433.0,60432.0,0.014]
[1727899704341,0.18265804,60433.0,60432.0,0.014]
[1727899704574,0.03467848,60433.0,60432.0,0.014]
[1727899704803,0.20015048,60433.0,60432.0,0.014]
[1727899705528,0.18365121,60433.0,60432.0,0.014]
[1727899705763,0.20110579,60433.0,60432.0,0.014]
[1727899705987,0.20010579,60433.0,60432.0,0.014]
[1727899706227,0.165475,60432.0,60429.0,0.165482]
[1727899706506,0.01717921,60431.0,60430.0,0.16548]
[1727899706980,0.24891101,60439.0,60436.0,0.165462]
[1727899707207,0.001,60433.0,60432.0,0.006]
[1727899707437,0.001,60433.0,60432.0,0.171475]
[1727899707438,0.00071678,60433.0,60432.0,0.171475]
[1727899707656,0.24891101,60440.0,60430.0,0.02848443]
[1727899707885,0.165459,60438.0,60435.0,0.165465]
[1727899708120,0.03464015,60437.0,60435.0,0.165465]
[1727899708372,0.03465516,60436.0,60435.0,0.165467]
[1727899708601,0.01717966,60436.0,60435.0,0.165467]
[1727899709064,0.001,60440.0,60439.0,0.165456]
[1727899709325,0.24891101,60447.0,60446.0,0.165436]
[1727899709533,0.28365337,60447.0,60445.0,0.165438]
[1727899709765,0.01719314,60446.0,60445.0,0.165439]
[1727899710675,0.01719314,60446.0,60445.0,0.171439]
[1727899711354,0.03481969,60446.0,60445.0,0.171439]
[1727899711585,0.01719314,60446.0,60445.0,0.006]
[1727899711829,0.18366151,60446.0,60445.0,0.013]
[1727899712050,0.165462,60437.0,60435.0,0.000817]
[1727899712502,0.18268951,60436.0,60435.0,0.000817]
[1727899712730,0.03484925,60436.0,60435.0,0.000817]
[1727899712963,0.20031325,60436.0,60435.0,0.000817]
[1727899713225,0.03484925,60436.0,60435.0,0.000817]
[1727899713900,0.03484925,60436.0,60435.0,0.012817]
[1727899714122,0.20031325,60436.0,60435.0,0.012817]
[1727899714572,0.20031325,60436.0,60435.0,0.187284]
[1727899714573,0.03484925,60436.0,60435.0,0.187284]
[1727899714804,0.01722551,60436.0,60435.0,0.178284]
[1727899715047,0.02594008,60446.0,60436.0,0.2165]
[1727899715291,0.0047522,60451.0,60450.0,0.165425]
[1727899715804,0.03979131,60451.0,60450.0,0.165425]
[1727899716032,0.03979131,60451.0,60446.0,0.330873]
[1727899716256,0.01730662,60450.0,60449.0,0.165426]
[1727899716481,0.03528499,60450.0,60449.0,0.165426]
[1727899716707,0.03528499,60450.0,60444.0,0.330883]
[1727899716928,0.03528499,60449.0,60447.0,0.165434]
[1727899717165,0.03528499,60448.0,60447.0,0.165434]
[1727899717919,0.03528499,60448.0,60437.0,0.30784429]
[1727899717920,0.01730662,60448.0,60436.0,0.137]
[1727899718175,0.0047522,60451.0,60446.0,0.165434]
[1727899718176,0.01730662,60447.0,60446.0,0.165434]
[1727899718444,0.01730662,60447.0,60444.0,0.165441]
[1727899718445,0.03490929,60447.0,60444.0,0.165441]
[1727899718715,0.03490929,60447.0,60445.0,0.165439]
[1727899718716,0.03503908,60446.0,60445.0,0.165439]
[1727899718972,0.01743764,60446.0,60444.0,0.003]
[1727899719213,0.01743764,60446.0,60444.0,0.165442]
[1727899719214,0.01743764,60445.0,60444.0,0.165442]
[1727899719481,0.01743764,60445.0,60442.0,0.165446]
[1727899719780,0.01743764,60445.0,60441.0,0.330897]
[1727899719781,0.03506161,60445.0,60443.0,0.165442]
[1727899720029,0.01747639,60447.0,60443.0,0.165445]
[1727899720030,0.03506161,60444.0,60443.0,0.165445]
[1727899720846,0.03506161,60444.0,60429.0,0.330966]
[1727899720849,0.330905,60441.0,60429.0,0.330966]
[1727899720852,0.03506161,60444.0,60430.0,0.24891101]
[1727899720853,0.165464,60436.0,60430.0,0.24891101]
[1727899721058,0.18308797,60436.0,60430.0,0.24891101]
[1727899721310,0.20052561,60436.0,60423.0,0.41440801]
[1727899721544,0.20052561,60436.0,60416.0,0.24891101]
[1727899721545,0.22646835,60436.0,60416.0,0.24891101]
[1727899721796,0.165513,60418.0,60417.0,0.24891101]
[1727899722068,0.18297511,60418.0,60417.0,0.24891101]
[1727899722266,0.165535,60410.0,60409.0,0.24891101]
[1727899722505,0.2004986,60410.0,60409.0,0.24891101]
[1727899722728,0.165542,60408.0,60402.0,0.000817]
[1727899722954,0.0349636,60407.0,60402.0,0.000817]
[1727899723173,0.2005096,60406.0,60402.0,0.000817]
[1727899723415,0.0349636,60405.0,60402.0,0.000817]
[1727899723674,0.28387461,60404.0,60402.0,0.000817]
[1727899723917,0.331099,60405.0,60402.0,0.000817]
[1727899723918,0.0349636,60403.0,60402.0,0.000817]
[1727899724143,0.2005176,60403.0,60402.0,0.000817]
[1727899724811,0.03444021,60403.0,60402.0,0.000817]
[1727899725033,0.19999421,60403.0,60402.0,0.000817]
[1727899725709,0.19999421,60403.0,60402.0,0.007817]
[1727899725961,0.03444021,60403.0,60402.0,0.007817]
[1727899726205,0.19999421,60403.0,60402.0,0.007817]
[1727899726470,0.03444021,60403.0,60402.0,0.007817]
[1727899726724,0.01728672,60403.0,60402.0,0.168374]
[1727899726969,0.24891101,60409.0,60408.0,0.16554]
[1727899727207,0.01723437,60409.0,60408.0,0.16554]
[1727899727423,0.24891101,60411.0,60409.0,0.165537]
[1727899727651,0.01721292,60410.0,60409.0,0.165538]
[1727899728166,0.01721292,60410.0,60407.0,0.43914268]
[1727899728167,0.01721238,60410.0,60407.0,0.60468468]
[1727899728403,0.33105,60414.0,60403.0,0.331105]
[1727899728635,0.01726316,60409.0,60408.0,0.165539]
[1727899728863,0.01726316,60409.0,60407.0,0.331083]
[1727899729096,0.01726316,60409.0,60407.0,0.165542]
[1727899729322,0.01726316,60408.0,60405.0,0.496644]
[1727899729555,0.01723425,60407.0,60405.0,0.331097]
[1727899729782,0.01723425,60407.0,60402.0,0.000817]
[1727899729783,0.01723425,60406.0,60402.0,0.000817]
[1727899730005,0.01723425,60405.0,60402.0,0.331931]
[1727899730228,0.165539,60409.0,60404.0,0.16555]
[1727899730452,0.0342267,60408.0,60402.0,0.331931]
[1727899730691,0.01716314,60407.0,60405.0,0.165548]
[1727899730914,0.01716314,60406.0,60405.0,0.165548]
[1727899731173,0.01716314,60406.0,60405.0,0.60469068]
[1727899731398,0.331013,60421.0,60405.0,0.43914268]
[1727899731399,0.165512,60419.0,60405.0,0.43914268]
[1727899731625,1.04871101,60434.0,60402.0,0.000817]
[1727899731626,0.27486327,60418.0,60417.0,0.165516]
[1727899731851,0.26608867,60418.0,60405.0,0.009]
[1727899732088,0.001,60406.0,60405.0,0.198549]
[1727899732315,0.001,60406.0,60405.0,0.189549]
[1727899732559,0.001,60406.0,60405.0,0.19685913]
[1727899732785,0.001,60406.0,60405.0,0.63700189]
[1727899733033,0.001,60406.0,60405.0,0.62969168]
[1727899733281,0.001,60406.0,60405.0,0.64369168]
[1727899733509,0.001,60406.0,60405.0,0.64450868]
[1727899733742,0.001,60406.0,60405.0,0.64650868]
[1727899734224,0.57985201,60434.0,60405.0,0.64650868]
[1727899734225,0.24891101,60434.0,60408.0,0.028]
[1727899734469,0.24891101,60434.0,60429.0,0.165483]
[1727899734735,0.24891101,60434.0,60430.0,0.33096]
[1727899734972,0.24891101,60434.0,60432.0,0.165473]
[1727899735200,0.41436201,60441.0,60435.0,0.165465]
[1727899735464,0.03388798,60440.0,60433.0,0.330943]
[1727899735700,0.03388798,60439.0,60433.0,0.330943]
[1727899735931,0.80248,60445.0,60434.0,0.330938]
[1727899735932,0.01704736,60438.0,60434.0,0.330938]
[1727899736159,0.4716,60445.0,60439.0,0.165455]
[1727899736411,0.4716,60445.0,60430.0,0.43914268]
[1727899736412,0.41436101,60441.0,60436.0,0.165464]
[1727899736635,0.01694644,60440.0,60436.0,0.165464]
[1727899737105,0.01694644,60440.0,60438.0,0.165457]
[1727899737329,0.001634,60446.0,60439.0,0.165456]
[1727899737330,0.005,60441.0,60439.0,0.165456]
[1727899737556,0.01699173,60440.0,60437.0,0.16546]
[1727899737787,0.01699173,60440.0,60439.0,0.165456]
[1727899738014,0.005,60441.0,60440.0,0.165453]
[1727899738500,0.001634,60446.0,60445.0,0.165439]
[1727899740429,0.001634,60446.0,60445.0,0.006]
[1727899740975,0.16707,60446.0,60445.0,0.009]
[1727899741236,0.001634,60446.0,60445.0,0.009]
[1727899741613,0.001634,60446.0,60445.0,0.04299]
[1727899741711,0.01848278,60446.0,60445.0,0.03999]
[1727899741938,0.02548278,60446.0,60441.0,0.330899]
[1727899742168,0.01684878,60445.0,60442.0,0.330894]
[1727899742400,0.01684878,60444.0,60441.0,0.330899]
[1727899742627,0.001634,60446.0,60445.0,0.165439]
[1727899743100,0.001634,60446.0,60434.0,0.330938]
[1727899743322,0.330891,60443.0,60442.0,0.005]
[1727899743542,0.332512,60446.0,60442.0,0.005]
[1727899743769,0.165442,60444.0,60442.0,0.005]
[1727899743995,0.165442,60444.0,60443.0,0.0170453]
[1727899744274,0.001634,60446.0,60445.0,0.165439]
[1727899744497,0.001634,60446.0,60445.0,0.45321267]
[1727899744729,0.001634,60446.0,60445.0,0.48486439]
[1727899746091,0.001634,60446.0,60445.0,0.48886439]
[1727899746589,0.001634,60446.0,60445.0,0.48486439]
[1727899746834,0.002634,60446.0,60445.0,0.50186439]
[1727899747098,0.002634,60446.0,60445.0,0.49686439]
[1727899747346,0.002634,60446.0,60445.0,0.65466439]
[1727899747347,0.003634,60446.0,60445.0,0.65466439]
[1727899747584,0.001634,60446.0,60445.0,0.64966439]
[1727899748075,0.002634,60446.0,60445.0,0.20739903]
[1727899748292,0.001634,60446.0,60445.0,0.20039903]
[1727899748729,0.001634,60446.0,60445.0,0.21339903]
[1727899749215,0.001634,60446.0,60445.0,0.20039903]
[1727899749452,0.002634,60446.0,60445.0,0.48986439]
[1727899749681,0.001634,60446.0,60445.0,0.48486439]
[1727899749901,0.001634,60446.0,60445.0,0.50786439]
[1727899750126,0.001632,60458.0,60451.0,0.023]
[1727899750344,0.001632,60458.0,60452.0,0.34413201]
[1727899750345,0.24891101,60453.0,60452.0,0.34413201]
[1727899750596,0.001632,60458.0,60453.0,0.023]
[1727899750835,0.001632,60458.0,60453.0,0.35160371]
[1727899751515,0.002634,60454.0,60453.0,0.35160371]
[1727899751762,0.002634,60454.0,60453.0,0.38656374]
[1727899752678,0.001634,60454.0,60453.0,0.40056374]
[1727899753135,0.002634,60454.0,60453.0,0.39256374]
[1727899753363,0.001634,60454.0,60453.0,0.38656374]
[1727899753610,0.24891101,60478.0,60477.0,0.317452]
[1727899753873,0.24891101,60478.0,60477.0,0.60191736]
[1727899754378,0.000815,60480.0,60479.0,0.165346]
[1727899755990,0.000815,60480.0,60479.0,0.179346]
[1727899756217,0.000815,60480.0,60479.0,0.21430603]
[1727899756442,0.000815,60480.0,60479.0,0.23598105]
[1727899756679,0.000815,60480.0,60479.0,0.24998105]
[1727899756956,0.000815,60480.0,60479.0,0.25830603]
[1727899757187,0.000815,60480.0,60479.0,0.24830603]
[1727899757408,0.000815,60480.0,60479.0,0.26230603]
[1727899757667,0.000815,60480.0,60479.0,0.25130603]
[1727899758127,0.000815,60480.0,60479.0,0.21430603]
[1727899758350,0.000815,60480.0,60479.0,0.22830603]
[1727899758832,0.000815,60480.0,60479.0,0.21430603]
[1727899759055,0.000815,60480.0,60479.0,0.24230603]
[1727899759290,0.000815,60480.0,60479.0,0.014]
[1727899759521,0.166158,60480.0,60479.0,0.014]
[1727899759967,0.166158,60480.0,60479.0,0.028]
[1727899760409,0.166158,60480.0,60479.0,0.014]
[1727899760640,0.19208134,60480.0,60479.0,0.014]
[1727899761149,0.19208134,60480.0,60460.0,0.57970401]
[1727899761150,0.330694,60479.0,60468.0,0.24891101]
[1727899761400,0.04618537,60480.0,60460.0,0.24891101]
[1727899761401,0.165373,60469.0,60460.0,0.24891101]
[1727899761630,0.27564935,60480.0,60460.0,0.24891101]
[1727899761631,0.165395,60461.0,60460.0,0.24891101]
[1727899761867,0.165398,60460.0,60453.0,0.165416]
[1727899762096,0.19132537,60462.0,60455.0,0.165412]
[1727899762312,0.19132537,60462.0,60456.0,0.165408]
[1727899762537,0.02593037,60462.0,60455.0,0.330821]
[1727899762972,0.02593037,60462.0,60460.0,0.009]
[1727899763490,0.02593037,60462.0,60461.0,0.165395]
[1727899763741,0.02593037,60462.0,60460.0,0.009]
[1727899763742,0.24891101,60470.0,60464.0,0.33077]
[1727899763991,0.24891101,60470.0,60463.0,0.165388]
[1727899763992,0.165374,60469.0,60463.0,0.165388]
[1727899764214,0.24891101,60470.0,60466.0,0.16538]
[1727899764445,0.661432,60475.0,60463.0,0.330779]
[1727899764446,0.24891101,60471.0,60467.0,0.165377]
[1727899764668,0.000815,60480.0,60467.0,0.28446536]
[1727899764885,0.000815,60480.0,60478.0,0.165349]
[1727899765575,0.000815,60480.0,60479.0,0.165346]
[1727899767167,0.000815,60480.0,60479.0,0.169346]
[1727899767698,0.000815,60480.0,60479.0,0.021]
[1727899768125,0.000815,60480.0,60479.0,0.01]
[1727899768337,0.000815,60480.0,60479.0,0.021]
[1727899768772,0.000815,60480.0,60479.0,0.186346]
[1727899768984,0.000815,60480.0,60479.0,0.175346]
[1727899769411,0.000815,60480.0,60479.0,0.165346]
[1727899769619,0.000815,60480.0,60479.0,0.183346]
[1727899769828,0.000815,60480.0,60479.0,0.018]
[1727899770043,0.000815,60480.0,60479.0,0.183346]
[1727899770702,0.000815,60480.0,60479.0,0.190346]
[1727899770926,0.000815,60480.0,60479.0,0.179346]
[1727899771240,0.000815,60480.0,60479.0,0.190346]
[1727899771866,0.000815,60480.0,60479.0,0.179346]
[1727899772088,0.000815,60480.0,60479.0,0.192346]
[1727899772551,0.000815,60480.0,60479.0,0.165346]
[1727899772774,0.000815,60480.0,60479.0,0.175346]
[1727899773001,0.000815,60480.0,60479.0,0.179346]
[1727899773460,0.000815,60480.0,60479.0,0.193346]
[1727899779278,0.000815,60480.0,60479.0,0.165346]
[1727899779503,0.000815,60480.0,60479.0,0.193346]
[1727899779945,0.000815,60480.0,60479.0,0.207346]
[1727899780196,0.000815,60480.0,60479.0,0.193346]
[1727899780439,0.000815,60480.0,60479.0,0.202346]
[1727899780882,0.000815,60480.0,60479.0,0.188346]
[1727899781100,0.000815,60480.0,60479.0,0.202346]
[1727899781538,0.000815,60480.0,60479.0,0.188346]
[1727899781765,0.000815,60480.0,60479.0,0.200346]
[1727899781985,0.000815,60480.0,60479.0,0.177346]
[1727899782196,0.000815,60480.0,60479.0,0.186346]
[1727899782418,0.000815,60480.0,60479.0,0.174346]
[1727899782645,0.000815,60480.0,60479.0,0.196346]
[1727899783096,0.000815,60480.0,60479.0,0.187346]
[1727899783537,0.000815,60480.0,60479.0,0.196346]
[1727899783758,0.000815,60480.0,60479.0,0.021]
[1727899783983,0.166158,60480.0,60479.0,0.021]
[1727899784206,0.000815,60480.0,60479.0,0.021]
[1727899784886,0.166158,60480.0,60479.0,0.021]
[1727899785111,0.000815,60480.0,60479.0,0.019]
[1727899785327,0.000815,60480.0,60479.0,0.0449712]
[1727899785556,0.000815,60480.0,60479.0,0.0659712]
[1727899786018,0.000815,60480.0,60479.0,0.019]
[1727899786242,0.000815,60480.0,60479.0,0.031]
[1727899786993,0.000815,60480.0,60479.0,0.196346]
[1727899787945,0.000815,60480.0,60479.0,0.219346]
[1727899788178,0.000815,60480.0,60479.0,0.43899975]
[1727899788432,0.000815,60480.0,60479.0,0.43569329]
[1727899788669,0.000815,60480.0,60479.0,0.431446]
[1727899788917,0.000815,60480.0,60479.0,0.400446]
[1727899789164,0.000815,60480.0,60479.0,0.421446]
[1727899789849,0.000815,60480.0,60479.0,0.432446]
[1727899790073,0.000815,60480.0,60479.0,0.57563271]
[1727899790300,0.000815,60480.0,60479.0,0.67434801]
[1727899790539,0.000815,60480.0,60479.0,0.62505409]
[1727899791005,0.000815,60480.0,60479.0,0.56363271]
[1727899791223,0.000815,60480.0,60479.0,0.61305409]
[1727899791453,0.000815,60480.0,60479.0,0.64105409]
[1727899791677,0.000815,60480.0,60479.0,0.64105952]
[1727899791894,0.000815,60480.0,60479.0,0.57763271]
[1727899792126,0.000815,60481.0,60480.0,0.188343]
[1727899792354,0.000816,60490.0,60480.0,0.188343]
[1727899792355,0.24972701,60490.0,60489.0,0.44978436]
[1727899792576,0.24972701,60490.0,60489.0,0.47278436]
[1727899792797,0.000816,60490.0,60489.0,0.47278436]
[1727899793283,0.000816,60490.0,60489.0,0.81629598]
[1727899793533,0.000816,60515.0,60510.0,0.398961]
[1727899793762,0.000816,60515.0,60510.0,0.68342636]
[1727899793987,0.24891101,60525.0,60518.0,0.16524]
[1727899794219,0.24891101,60525.0,60518.0,0.189931]
[1727899794488,0.0002,60539.0,60532.0,0.165201]
[1727899794717,0.0002,60539.0,60532.0,0.44966636]
[1727899794950,0.0002,60539.0,60535.0,0.330385]
[1727899795180,0.0002,60539.0,60538.0,0.47265036]
[1727899795647,0.0002,60539.0,60538.0,0.63583707]
[1727899795890,0.0001,60562.0,60558.0,0.44959536]
[1727899796152,0.0002,60559.0,60558.0,0.47259536]
[1727899796384,0.0002,60559.0,60558.0,0.52027468]
[1727899796615,0.0002,60579.0,60558.0,0.52027468]
[1727899796616,0.0159591,60572.0,60558.0,0.51833139]
[1727899796843,0.0159591,60572.0,60553.0,0.0813]
[1727899796844,0.24891101,60566.0,60565.0,0.28446536]
[1727899797104,0.0159591,60572.0,60565.0,0.28446536]
[1727899797342,0.0159591,60572.0,60571.0,0.28446536]
[1727899797586,0.0159591,60572.0,60571.0,0.3129119]
[1727899797821,0.0159591,60572.0,60571.0,0.02844654]
[1727899798069,0.0159591,60572.0,60571.0,0.3129119]
[1727899798848,0.0159591,60572.0,60571.0,0.3239119]
[1727899799106,0.0159591,60572.0,60571.0,0.03944654]
[1727899799387,0.0159591,60572.0,60571.0,0.029]
[1727899799388,0.1810511,60572.0,60571.0,0.029]
[1727899799653,0.20693386,60572.0,60571.0,0.029]
[1727899800553,0.20693386,60572.0,60565.0,0.24891101]
[1727899800554,0.165109,60566.0,60565.0,0.24891101]
[1727899800783,0.04184186,60572.0,60558.0,0.24891101]
[1727899800784,0.165112,60565.0,60558.0,0.24891101]
[1727899801009,0.04184186,60572.0,60565.0,0.24891101]
[1727899801274,0.165096,60571.0,60564.0,0.28446536]
[1727899801497,0.04184186,60572.0,60571.0,0.008]
[1727899801719,0.0159591,60572.0,60569.0,0.28446536]
[1727899802214,0.0159591,60572.0,60571.0,0.011]
[1727899802665,0.0159591,60572.0,60571.0,0.034]
[1727899802887,0.0159591,60572.0,60571.0,0.011]
[1727899803574,0.0159591,60572.0,60571.0,0.48165207]
[1727899803846,0.0159591,60572.0,60571.0,0.47065207]
[1727899804070,0.0159591,60572.0,60571.0,0.35128171]
[1727899804545,0.0002,60579.0,60578.0,0.47254136]
[1727899804797,0.0002,60579.0,60578.0,0.30746536]
[1727899805072,0.0002,60579.0,60578.0,0.47254136]
[1727899805313,0.0002,60579.0,60578.0,0.30746536]
[1727899805546,0.0002,60579.0,60578.0,0.03074654]
[1727899805775,0.0002,60579.0,60567.0,0.28446536]
[1727899805776,0.0002,60579.0,60562.0,0.28446536]
[1727899806000,0.1651,60569.0,60568.0,0.24891101]
[1727899806232,0.0002,60579.0,60568.0,0.24891101]
[1727899806473,0.0002,60579.0,60567.0,0.28446536]
[1727899806696,0.330153,60578.0,60573.0,0.28446536]
[1727899807183,0.0002,60579.0,60569.0,0.24891101]
[1727899807184,0.0002,60579.0,60571.0,0.011]
[1727899807409,0.16508,60577.0,60571.0,0.011]
[1727899807683,0.330158,60577.0,60569.0,0.24891101]
[1727899807916,0.0002,60579.0,60577.0,0.023]
[1727899808139,0.0002,60579.0,60578.0,0.47584202]
[1727899808393,0.0002,60579.0,60578.0,0.47254136]
[1727899808620,0.0002,60579.0,60578.0,0.30746536]
[1727899808839,0.0002,60579.0,60578.0,0.47254136]
[1727899809064,0.0002,60579.0,60578.0,0.63572807]
[1727899809812,0.0002,60579.0,60578.0,0.64972807]
[1727899810713,0.24891101,60592.0,60591.0,0.165041]
[1727899810938,0.24891101,60592.0,60591.0,0.63569307]
[1727899811164,0.0038206,60593.0,60592.0,0.188038]
[1727899811395,0.0038206,60593.0,60592.0,0.3545236]
[1727899811670,0.000817,60594.0,60593.0,0.188035]
[1727899811896,0.000817,60594.0,60593.0,0.35122171]
[1727899812138,0.24891101,60612.0,60598.0,0.165021]
[1727899812417,0.02586754,60618.0,60617.0,0.0775]
[1727899812418,0.24891101,60618.0,60617.0,0.0775]
[1727899812656,0.24891101,60618.0,60617.0,1.04306107]
[1727899812874,0.0002,60619.0,60617.0,1.04306107]
[1727899812875,0.0002,60619.0,60618.0,0.18710486]
[1727899813102,0.0002,60619.0,60618.0,0.35029157]
[1727899813380,0.0002,60619.0,60607.0,0.01]
[1727899813381,0.24891101,60626.0,60601.0,0.0775]
[1727899813727,0.24891101,60631.0,60611.0,0.24891101]
[1727899813896,0.16498,60614.0,60611.0,0.24891101]
[1727899814110,0.0786,60630.0,60604.0,0.28446536]
[1727899814332,0.1406,60635.0,60615.0,0.24891101]
[1727899814553,0.0786,60639.0,60620.0,0.28446536]
[1727899814554,0.25091101,60638.0,60620.0,0.28446536]
[1727899814782,0.1415,60646.0,60621.0,0.41209772]
[1727899814783,0.164932,60631.0,60621.0,0.41209772]
[1727899815004,0.24901101,60644.0,60625.0,0.28446536]
[1727899815216,0.164926,60634.0,60626.0,0.02711423]
[1727899815442,0.24901101,60644.0,60629.0,0.023]
[1727899815657,0.164927,60633.0,60629.0,0.023]
[1727899815877,0.0001,60644.0,60631.0,0.023]
[1727899816107,0.0001,60644.0,60636.0,0.28446536]
[1727899816528,0.0001,60644.0,60641.0,0.28446536]
[1727899816533,0.0001,60644.0,60643.0,0.164899]
[1727899816776,0.0001,60644.0,60643.0,0.21330094]
[1727899817741,0.0001,60644.0,60629.0,0.57978301]
[1727899817742,0.0001,60644.0,60629.0,0.24991101]
[1727899817974,0.164934,60630.0,60629.0,0.001]
[1727899818201,0.0001,60644.0,60624.0,0.24891101]
[1727899818440,0.0001,60644.0,60636.0,0.007]
[1727899819443,0.0001,60644.0,60637.0,0.00329779]
[1727899819671,0.0001,60644.0,60632.0,0.43541896]
[1727899819891,0.0001,60644.0,60633.0,0.187925]
[1727899820130,0.0001,60644.0,60636.0,0.164917]
[1727899820380,0.0001,60644.0,60637.0,0.023]
[1727899820896,0.164908,60640.0,60633.0,0.27191101]
[1727899821150,0.164908,60640.0,60622.0,0.329907]
[1727899821151,0.329823,60639.0,60624.0,0.24891101]
[1727899821423,0.0001,60644.0,60633.0,0.24891101]
[1727899821638,0.0001,60644.0,60625.0,0.62349677]
[1727899821639,0.329816,60640.0,60625.0,0.62349677]
[1727899821877,0.329816,60640.0,60631.0,0.24891101]
[1727899822156,0.164923,60634.0,60633.0,0.002]
[1727899822395,0.329835,60637.0,60633.0,0.002]
[1727899822620,0.164923,60634.0,60633.0,0.002]
[1727899822857,0.124423,60634.0,60633.0,0.002]
[1727899823089,0.164939,60629.0,60625.0,0.0248911]
[1727899823319,0.24891101,60643.0,60625.0,0.0248911]
[1727899823320,0.164929,60632.0,60631.0,0.001]
[1727899824841,0.164929,60632.0,60615.0,0.24891101]
[1727899824842,0.002,60635.0,60615.0,0.24891101]
[1727899825078,0.164972,60616.0,60615.0,0.27380211]
[1727899825583,0.329941,60617.0,60600.0,0.24891101]
[1727899825584,0.329998,60607.0,60600.0,0.24891101]
[1727899825818,0.0785,60622.0,60600.0,0.24891101]
[1727899825819,0.165013,60601.0,60600.0,0.24891101]
[1727899826059,0.002,60619.0,60600.0,0.24891101]
[1727899826060,0.330003,60606.0,60600.0,0.24891101]
[1727899826312,0.002,60616.0,60600.0,0.0248911]
[1727899826536,0.002,60616.0,60593.0,0.24891101]
[1727899826537,0.330004,60606.0,60593.0,0.41394401]
[1727899826765,0.329946,60616.0,60593.0,0.24891101]
[1727899826766,0.165003,60605.0,60593.0,0.24891101]
[1727899826984,0.16503,60595.0,60594.0,0.0248911]
[1727899827447,0.330049,60598.0,60581.0,0.43541896]
[1727899827683,0.330049,60598.0,60577.0,0.57906601]
[1727899827684,0.24891101,60597.0,60585.0,0.24891101]
[1727899828132,0.24891101,60597.0,60577.0,0.24891101]
[1727899828133,0.165055,60586.0,60577.0,0.24891101]
[1727899828367,0.165051,60587.0,60586.0,0.24891101]
[1727899828600,0.165051,60587.0,60571.0,0.330187]
[1727899828601,0.330112,60586.0,60571.0,0.330189]
[1727899828831,0.25091101,60594.0,60578.0,0.24891101]
[1727899829055,0.165079,60578.0,60569.0,0.24891101]
[1727899829348,0.165079,60577.0,60576.0,0.24891101]
[1727899829598,0.24891101,60594.0,60554.0,0.001628]
[1727899829599,0.330147,60579.0,60554.0,0.001628]
[1727899829830,0.16509,60573.0,60565.0,0.24891101]
[1727899830291,0.16509,60573.0,60572.0,0.015628]
[1727899830761,0.19097281,60573.0,60572.0,0.015628]
[1727899831006,0.19297281,60573.0,60572.0,0.015628]
[1727899831472,0.19297281,60573.0,60572.0,0.001628]
[1727899831710,0.19097281,60573.0,60572.0,0.001628]
[1727899832386,0.20669101,60573.0,60572.0,0.001628]
[1727899832608,0.20369101,60573.0,60572.0,0.001628]
[1727899833062,0.20369101,60573.0,60572.0,0.002628]
[1727899833505,0.20669101,60573.0,60572.0,0.002628]
[1727899833727,0.1808082,60573.0,60572.0,0.002628]
[1727899834177,0.1828082,60573.0,60572.0,0.002628]
[1727899834425,0.1808082,60573.0,60572.0,0.002628]
[1727899834879,0.1778082,60573.0,60572.0,0.001628]
[1727899835125,0.1808082,60573.0,60572.0,0.001628]
[1727899835639,0.1838082,60573.0,60572.0,0.001628]
[1727899835859,0.1858082,60573.0,60572.0,0.001628]
[1727899836101,0.59389103,60573.0,60572.0,0.001628]
[1727899836326,0.165117,60563.0,60558.0,0.24891101]
[1727899836783,0.17736287,60563.0,60558.0,0.24891101]
[1727899837028,0.17736287,60563.0,60554.0,0.001628]
[1727899837490,0.17373787,60563.0,60554.0,0.001628]
[1727899837764,0.17173787,60563.0,60554.0,0.001628]
[1727899839181,0.42064888,60563.0,60554.0,0.001628]
[1727899839417,0.17173787,60563.0,60562.0,0.00263]
[1727899839920,0.18073787,60563.0,60562.0,0.00363]
[1727899840155,0.42964888,60563.0,60562.0,0.00363]
[1727899840383,0.18073787,60563.0,60562.0,0.00363]
[1727899841519,0.42964888,60563.0,60562.0,0.00363]
[1727899841741,0.17173787,60563.0,60562.0,0.00163]
[1727899841960,0.17573787,60563.0,60562.0,0.00163]
[1727899842643,0.48660878,60563.0,60562.0,1e-06]
[1727899842872,0.31163787,60563.0,60562.0,1e-06]
[1727899843088,0.31563787,60563.0,60562.0,1e-06]
[1727899843575,0.17573787,60563.0,60562.0,1e-06]
[1727899844728,0.17173787,60563.0,60562.0,1e-06]
[1727899845003,0.17973787,60563.0,60562.0,1e-06]
[1727899845450,0.18273787,60563.0,60562.0,1e-06]
[1727899845670,0.17473787,60563.0,60562.0,1e-06]
[1727899846112,0.18173787,60563.0,60562.0,1e-06]
[1727899846340,0.17873787,60563.0,60562.0,1e-06]
[1727899846559,0.24494487,60563.0,60562.0,1e-06]
[1727899847454,0.64350611,60563.0,60562.0,1e-06]
[1727899847687,0.25194487,60563.0,60562.0,1e-06]
[1727899847910,0.23794487,60563.0,60562.0,1e-06]
[1727899848127,0.21143242,60563.0,60562.0,1e-06]
[1727899848343,0.21943242,60563.0,60562.0,1e-06]
[1727899848573,0.2759265,60563.0,60562.0,1e-06]
[1727899848793,0.22843242,60563.0,60562.0,1e-06]
[1727899849047,0.21343242,60563.0,60562.0,1e-06]
[1727899849270,0.165139,60555.0,60554.0,0.001628]
[1727899849501,0.60055796,60555.0,60554.0,0.001628]
[1727899849725,0.56219594,60555.0,60537.0,0.24891101]
[1727899849943,0.165185,60538.0,60537.0,0.24891101]
[1727899850416,0.00799418,60538.0,60517.0,0.24891101]
[1727899850644,0.330468,60521.0,60517.0,0.24891101]